[Event "Titled Tuesday Blitz October 26 2021"]
[White "Sorokin, Aleksey"]
[Black "Shkapenko, Pavel"]
[WhiteFideId "24176460"]
[BlackFideId "4151933"]
[WhiteElo "2476"]
[BlackElo "2386"]
[Result "1-0"]
[Round "07"]
[TimeControl "180+1"]
[Date "2021.10.26"]
[WhiteClock "0:01:18"]
[BlackClock "0:00:13"]

1. e4 {[%clk 0:03:00]}  e5 {[%clk 0:02:59]} 2. Nf3 {[%clk 0:03:00]}  Nc6 {[%clk 0:02:59]} 3. Bb5 {[%clk 0:03:00]}  Bc5 {[%clk 0:02:59]} 4. c3 {[%clk 0:02:56]}  f5 {[%clk 0:02:58]} 5. d3 {[%clk 0:02:53]}  fxe4 {[%clk 0:02:57]} 6. dxe4 {[%clk 0:02:53]}  Nf6 {[%clk 0:02:57]} 7. O-O {[%clk 0:02:49]}  d6 {[%clk 0:02:57]} 8. Nbd2 {[%clk 0:02:40]}  O-O {[%clk 0:02:56]} 9. b4 {[%clk 0:02:40]}  Bb6 {[%clk 0:02:56]} 10. a4 {[%clk 0:02:40]}  a5 {[%clk 0:02:41]} 11. Nc4 {[%clk 0:02:39]}  axb4 {[%clk 0:02:39]} 12. Nxb6 {[%clk 0:02:39]}  cxb6 {[%clk 0:02:38]} 13. cxb4 {[%clk 0:02:40]}  Bg4 {[%clk 0:02:34]} 14. Qb3+ {[%clk 0:02:39]}  Kh8 {[%clk 0:02:33]} 15. Ng5 {[%clk 0:02:36]}  Nd4 {[%clk 0:02:23]} 16. Nf7+ {[%clk 0:02:29]}  Kg8 {[%clk 0:01:36]} 17. Nxd8+ {[%clk 0:02:18]}  Nxb3 {[%clk 0:01:35]} 18. Bc4+ {[%clk 0:02:18]}  Kh8 {[%clk 0:01:34]} 19. Bxb3 {[%clk 0:02:16]}  Rfxd8 {[%clk 0:01:32]} 20. Be3 {[%clk 0:02:16]}  b5 {[%clk 0:01:23]} 21. axb5 {[%clk 0:02:14]}  Be2 {[%clk 0:01:23]} 22. Rfe1 {[%clk 0:02:01]}  Bxb5 {[%clk 0:01:23]} 23. f3 {[%clk 0:02:00]}  Rdc8 {[%clk 0:01:09]} 24. Be6 {[%clk 0:01:55]}  Re8 {[%clk 0:01:07]} 25. Rxa8 {[%clk 0:01:53]}  Rxa8 {[%clk 0:01:06]} 26. Rd1 {[%clk 0:01:54]}  Ne8 {[%clk 0:01:01]} 27. Bf7 {[%clk 0:01:54]}  g6 {[%clk 0:00:57]} 28. Bxe8 {[%clk 0:01:53]}  Rxe8 {[%clk 0:00:55]} 29. Rxd6 {[%clk 0:01:54]}  Bc6 {[%clk 0:00:51]} 30. Bh6 {[%clk 0:01:49]}  Kg8 {[%clk 0:00:51]} 31. Rf6 {[%clk 0:01:49]}  Bd7 {[%clk 0:00:48]} 32. Rb6 {[%clk 0:01:47]}  Bc8 {[%clk 0:00:45]} 33. Kf2 {[%clk 0:01:38]}  Kf7 {[%clk 0:00:44]} 34. Rb5 {[%clk 0:01:36]}  Re7 {[%clk 0:00:33]} 35. Bc1 {[%clk 0:01:31]}  Rc7 {[%clk 0:00:29]} 36. Be3 {[%clk 0:01:29]}  Ke6 {[%clk 0:00:27]} 37. Kg3 {[%clk 0:01:29]}  Bd7 {[%clk 0:00:24]} 38. Rxe5+ {[%clk 0:01:29]}  Kxe5 {[%clk 0:00:24]} 39. Bf4+ {[%clk 0:01:29]}  Kd4 {[%clk 0:00:23]} 40. Bxc7 {[%clk 0:01:30]}  b5 {[%clk 0:00:21]} 41. Kf4 {[%clk 0:01:30]}  Be6 {[%clk 0:00:21]} 42. g4 {[%clk 0:01:29]}  Bc4 {[%clk 0:00:20]} 43. h4 {[%clk 0:01:29]}  Be2 {[%clk 0:00:19]} 44. Bb6+ {[%clk 0:01:28]}  Kc4 {[%clk 0:00:19]} 45. Bc5 {[%clk 0:01:26]}  Bd1 {[%clk 0:00:19]} 46. h5 {[%clk 0:01:23]}  gxh5 {[%clk 0:00:18]} 47. gxh5 {[%clk 0:01:24]}  Be2 {[%clk 0:00:19]} 48. h6 {[%clk 0:01:24]}  Bd1 {[%clk 0:00:19]} 49. Ke3 {[%clk 0:01:24]}  Bc2 {[%clk 0:00:16]} 50. f4 {[%clk 0:01:24]}  Bd1 {[%clk 0:00:15]} 51. f5 {[%clk 0:01:24]}  Bh5 {[%clk 0:00:15]} 52. Kf4 {[%clk 0:01:25]}  Be8 {[%clk 0:00:14]} 53. Ke5 {[%clk 0:01:25]}  Bh5 {[%clk 0:00:13]} 54. Kf6 {[%clk 0:01:23]}  Kd3 {[%clk 0:00:12]} 55. e5 {[%clk 0:01:23]}  Ke4 {[%clk 0:00:13]} 56. e6 {[%clk 0:01:22]}  Bg4 {[%clk 0:00:13]} 57. e7 {[%clk 0:01:18]}  Bh5 {[%clk 0:00:13]} 58. Ke6 {[%clk 0:01:18]} 1-0


[Site "https://www.chess.com"]

[Event "Titled Tuesday Blitz October 26 2021"]
[White "Srihari L R"]
[Black "Sellitti, Federico"]
[WhiteFideId "46617116"]
[BlackFideId "821829"]
[WhiteElo "2121"]
[BlackElo "2583"]
[Result "0-1"]
[Round "07"]
[TimeControl "180+1"]
[Date "2021.10.26"]
[WhiteClock "0:00:08"]
[BlackClock "0:01:00"]

1. d4 {[%clk 0:02:58]}  d5 {[%clk 0:02:59]} 2. c4 {[%clk 0:02:58]}  Nc6 {[%clk 0:02:59]} 3. cxd5 {[%clk 0:02:56]}  Qxd5 {[%clk 0:02:59]} 4. e3 {[%clk 0:02:54]}  e5 {[%clk 0:02:59]} 5. Nc3 {[%clk 0:02:53]}  Bb4 {[%clk 0:02:59]} 6. Bd2 {[%clk 0:02:54]}  Bxc3 {[%clk 0:02:58]} 7. bxc3 {[%clk 0:02:55]}  Nf6 {[%clk 0:02:56]} 8. Qb3 {[%clk 0:02:52]}  Qd6 {[%clk 0:02:53]} 9. Nf3 {[%clk 0:02:46]}  O-O {[%clk 0:02:51]} 10. Bb5 {[%clk 0:02:42]}  e4 {[%clk 0:02:48]} 11. Ng5 {[%clk 0:02:37]}  h6 {[%clk 0:02:46]} 12. Nh3 {[%clk 0:02:36]}  Bxh3 {[%clk 0:02:46]} 13. gxh3 {[%clk 0:02:36]}  Qd7 {[%clk 0:02:43]} 14. Bf1 {[%clk 0:02:27]}  Ne7 {[%clk 0:02:29]} 15. Rg1 {[%clk 0:02:16]}  b6 {[%clk 0:02:23]} 16. c4 {[%clk 0:02:13]}  c5 {[%clk 0:02:02]} 17. d5 {[%clk 0:02:12]}  Nf5 {[%clk 0:02:03]} 18. Bc3 {[%clk 0:02:08]}  Ne8 {[%clk 0:02:02]} 19. h4 {[%clk 0:02:00]}  Nxh4 {[%clk 0:01:50]} 20. Be2 {[%clk 0:01:56]}  f6 {[%clk 0:01:48]} 21. Rg4 {[%clk 0:01:35]}  Nf3+ {[%clk 0:01:45]} 22. Bxf3 {[%clk 0:01:33]}  exf3 {[%clk 0:01:45]} 23. Rg3 {[%clk 0:01:33]}  Qf5 {[%clk 0:01:45]} 24. Qb1 {[%clk 0:01:32]}  Qxb1+ {[%clk 0:01:42]} 25. Rxb1 {[%clk 0:01:33]}  Nd6 {[%clk 0:01:43]} 26. Rg4 {[%clk 0:01:25]}  Rae8 {[%clk 0:01:35]} 27. Rc1 {[%clk 0:01:11]}  Re4 {[%clk 0:01:29]} 28. Rg3 {[%clk 0:01:08]}  Rxc4 {[%clk 0:01:29]} 29. Rxf3 {[%clk 0:01:07]}  Ne4 {[%clk 0:01:14]} 30. Bd2 {[%clk 0:00:55]}  Rxc1+ {[%clk 0:01:15]} 31. Bxc1 {[%clk 0:00:55]}  Nc3 {[%clk 0:01:15]} 32. d6 {[%clk 0:00:43]}  Rd8 {[%clk 0:01:12]} 33. Bb2 {[%clk 0:00:34]}  Nxa2 {[%clk 0:01:12]} 34. e4 {[%clk 0:00:25]}  Rxd6 {[%clk 0:01:12]} 35. Ke2 {[%clk 0:00:23]}  Nb4 {[%clk 0:01:10]} 36. Ra3 {[%clk 0:00:22]}  a5 {[%clk 0:01:10]} 37. f4 {[%clk 0:00:22]}  c4 {[%clk 0:01:06]} 38. e5 {[%clk 0:00:17]}  Rd3 {[%clk 0:01:06]} 39. Ra1 {[%clk 0:00:15]}  c3 {[%clk 0:01:03]} 40. Ba3 {[%clk 0:00:14]}  Rd2+ {[%clk 0:01:03]} 41. Kf3 {[%clk 0:00:13]}  Nc2 {[%clk 0:01:01]} 42. Rg1 {[%clk 0:00:08]}  Nxa3 {[%clk 0:00:59]} 43. exf6 {[%clk 0:00:08]}  Rd7 {[%clk 0:01:00]} 0-1


[Site "https://www.chess.com"]

[Event "Titled Tuesday Blitz October 26 2021"]
[White "Tregubov, Pavel V."]
[Black "Obolenskikh, Dmitry"]
[WhiteFideId "4115341"]
[BlackFideId "4156013"]
[WhiteElo "2423"]
[BlackElo "2541"]
[Result "0-1"]
[Round "07"]
[TimeControl "180+1"]
[Date "2021.10.26"]
[WhiteClock "0:01:07"]
[BlackClock "0:00:56"]

1. e4 {[%clk 0:03:00]}  e5 {[%clk 0:02:59]} 2. Nf3 {[%clk 0:03:00]}  Nc6 {[%clk 0:03:00]} 3. Bb5 {[%clk 0:03:01]}  a6 {[%clk 0:02:59]} 4. Ba4 {[%clk 0:03:01]}  Nf6 {[%clk 0:02:59]} 5. d4 {[%clk 0:03:01]}  exd4 {[%clk 0:02:58]} 6. O-O {[%clk 0:03:02]}  Nxe4 {[%clk 0:02:57]} 7. Re1 {[%clk 0:02:56]}  d5 {[%clk 0:02:55]} 8. Nxd4 {[%clk 0:02:56]}  Bd6 {[%clk 0:02:43]} 9. Nxc6 {[%clk 0:02:52]}  Bxh2+ {[%clk 0:02:42]} 10. Kh1 {[%clk 0:02:48]}  Qh4 {[%clk 0:02:07]} 11. Rxe4+ {[%clk 0:02:47]}  dxe4 {[%clk 0:02:00]} 12. Qd8+ {[%clk 0:02:47]}  Qxd8 {[%clk 0:02:00]} 13. Nxd8+ {[%clk 0:02:47]}  Kxd8 {[%clk 0:01:55]} 14. Kxh2 {[%clk 0:02:47]}  Be6 {[%clk 0:01:53]} 15. Bf4 {[%clk 0:02:28]}  b5 {[%clk 0:01:48]} 16. Bb3 {[%clk 0:02:27]}  Bxb3 {[%clk 0:01:48]} 17. axb3 {[%clk 0:02:27]}  f5 {[%clk 0:01:41]} 18. Nc3 {[%clk 0:02:18]}  c6 {[%clk 0:01:41]} 19. Rd1+ {[%clk 0:02:17]}  Ke7 {[%clk 0:01:39]} 20. Rd6 {[%clk 0:02:01]}  Rac8 {[%clk 0:01:39]} 21. Ne2 {[%clk 0:01:58]}  Rhd8 {[%clk 0:01:37]} 22. Rxd8 {[%clk 0:01:58]}  Kxd8 {[%clk 0:01:37]} 23. Nd4 {[%clk 0:01:56]}  g6 {[%clk 0:01:35]} 24. Ne6+ {[%clk 0:01:55]}  Ke7 {[%clk 0:01:34]} 25. Nc5 {[%clk 0:01:54]}  a5 {[%clk 0:01:30]} 26. Kg3 {[%clk 0:01:46]}  Kf6 {[%clk 0:01:27]} 27. Bd2 {[%clk 0:01:41]}  Ra8 {[%clk 0:01:24]} 28. Kf4 {[%clk 0:01:37]}  g5+ {[%clk 0:01:22]} 29. Ke3 {[%clk 0:01:38]}  a4 {[%clk 0:01:20]} 30. Bc3+ {[%clk 0:01:37]}  Kg6 {[%clk 0:01:20]} 31. bxa4 {[%clk 0:01:34]}  bxa4 {[%clk 0:01:20]} 32. Bb4 {[%clk 0:01:32]}  h5 {[%clk 0:01:19]} 33. c3 {[%clk 0:01:30]}  h4 {[%clk 0:01:19]} 34. Nd7 {[%clk 0:01:27]}  Re8 {[%clk 0:01:12]} 35. Nb6 {[%clk 0:01:17]}  f4+ {[%clk 0:01:10]} 36. Ke2 {[%clk 0:01:17]}  g4 {[%clk 0:01:10]} 37. Kf1 {[%clk 0:01:13]}  h3 {[%clk 0:01:08]} 38. gxh3 {[%clk 0:01:12]}  gxh3 {[%clk 0:01:09]} 39. Bd6 {[%clk 0:01:09]}  Kf5 {[%clk 0:01:01]} 40. Nc4 {[%clk 0:01:07]}  Rg8 {[%clk 0:00:56]} 0-1


[Site "https://www.chess.com"]

[Event "Titled Tuesday Blitz October 26 2021"]
[White "Vlachos, Anatole"]
[Black "Indjic, Aleksandar"]
[WhiteFideId "26093189"]
[BlackFideId "911925"]
[WhiteElo "2350"]
[BlackElo "2643"]
[Result "1-0"]
[Round "07"]
[TimeControl "180+1"]
[Date "2021.10.26"]
[WhiteClock "0:00:02"]
[BlackClock "0:00:01"]

1. e4 {[%clk 0:03:00]}  c5 {[%clk 0:02:58]} 2. Nf3 {[%clk 0:03:00]}  Nc6 {[%clk 0:02:58]} 3. d4 {[%clk 0:02:59]}  cxd4 {[%clk 0:02:59]} 4. Nxd4 {[%clk 0:03:00]}  e6 {[%clk 0:02:59]} 5. Nc3 {[%clk 0:02:40]}  d6 {[%clk 0:02:57]} 6. Be3 {[%clk 0:02:37]}  Bd7 {[%clk 0:02:57]} 7. Be2 {[%clk 0:02:37]}  Nf6 {[%clk 0:02:52]} 8. O-O {[%clk 0:02:37]}  Nxd4 {[%clk 0:02:50]} 9. Bxd4 {[%clk 0:02:36]}  Bc6 {[%clk 0:02:50]} 10. Bd3 {[%clk 0:02:32]}  Be7 {[%clk 0:02:48]} 11. f4 {[%clk 0:02:30]}  Qa5 {[%clk 0:02:32]} 12. Kh1 {[%clk 0:02:16]}  Qb4 {[%clk 0:02:17]} 13. Bg1 {[%clk 0:01:21]}  Qxb2 {[%clk 0:01:44]} 14. Nb5 {[%clk 0:01:20]}  Bxb5 {[%clk 0:01:27]} 15. Rb1 {[%clk 0:01:20]}  Qxb1 {[%clk 0:01:04]} 16. Qxb1 {[%clk 0:01:18]}  Bc6 {[%clk 0:01:04]} 17. e5 {[%clk 0:01:15]}  dxe5 {[%clk 0:01:02]} 18. fxe5 {[%clk 0:01:15]}  Nd7 {[%clk 0:01:02]} 19. Bd4 {[%clk 0:01:10]}  O-O {[%clk 0:01:00]} 20. c3 {[%clk 0:01:05]}  g6 {[%clk 0:00:58]} 21. Qc1 {[%clk 0:01:04]}  Rad8 {[%clk 0:00:55]} 22. Qh6 {[%clk 0:01:02]}  Nc5 {[%clk 0:00:49]} 23. Bc2 {[%clk 0:00:55]}  Ne4 {[%clk 0:00:36]} 24. Qe3 {[%clk 0:00:39]}  Bg5 {[%clk 0:00:29]} 25. Qe2 {[%clk 0:00:29]}  Rxd4 {[%clk 0:00:14]} 26. cxd4 {[%clk 0:00:28]}  Nc3 {[%clk 0:00:15]} 27. Qf2 {[%clk 0:00:18]}  Be7 {[%clk 0:00:11]} 28. Qf4 {[%clk 0:00:13]}  Nd5 {[%clk 0:00:10]} 29. Qh6 {[%clk 0:00:13]}  a5 {[%clk 0:00:09]} 30. h4 {[%clk 0:00:12]}  Rc8 {[%clk 0:00:07]} 31. Be4 {[%clk 0:00:09]}  Bf8 {[%clk 0:00:07]} 32. Qg5 {[%clk 0:00:09]}  Bg7 {[%clk 0:00:04]} 33. h5 {[%clk 0:00:09]}  h6 {[%clk 0:00:04]} 34. Qg3 {[%clk 0:00:08]}  g5 {[%clk 0:00:05]} 35. Bb1 {[%clk 0:00:08]}  Nc3 {[%clk 0:00:03]} 36. Bc2 {[%clk 0:00:04]}  Ne2 {[%clk 0:00:03]} 37. Qd3 {[%clk 0:00:03]}  Nf4 {[%clk 0:00:03]} 38. Qh7+ {[%clk 0:00:03]}  Kf8 {[%clk 0:00:02]} 39. Rf2 {[%clk 0:00:02]}  Bd5 {[%clk 0:00:01]} 40. Kh2 {[%clk 0:00:02]}  Rc3 {[%clk 0:00:01]} 41. g3 {[%clk 0:00:02]} 1-0


[Site "https://www.chess.com"]

[Event "Titled Tuesday Blitz October 26 2021"]
[White "Yoo, Christopher Woojin"]
[Black "Kobalia, Mikhail"]
[WhiteFideId "30909694"]
[BlackFideId "4119150"]
[WhiteElo "2105"]
[BlackElo "2590"]
[Result "0-1"]
[Round "07"]
[TimeControl "180+1"]
[Date "2021.10.26"]
[WhiteClock "0:00:01"]
[BlackClock "0:00:20"]

1. e4 {[%clk 0:03:00]}  c6 {[%clk 0:02:59]} 2. Nf3 {[%clk 0:03:00]}  d5 {[%clk 0:03:00]} 3. d3 {[%clk 0:03:01]}  dxe4 {[%clk 0:02:56]} 4. dxe4 {[%clk 0:03:01]}  Qxd1+ {[%clk 0:02:56]} 5. Kxd1 {[%clk 0:03:02]}  Nf6 {[%clk 0:02:56]} 6. Nbd2 {[%clk 0:03:02]}  g6 {[%clk 0:02:56]} 7. Ne1 {[%clk 0:03:03]}  Bg7 {[%clk 0:02:55]} 8. Nd3 {[%clk 0:03:03]}  O-O {[%clk 0:02:55]} 9. f3 {[%clk 0:03:02]}  b6 {[%clk 0:02:55]} 10. c3 {[%clk 0:03:02]}  Nbd7 {[%clk 0:02:52]} 11. a4 {[%clk 0:03:02]}  Ne8 {[%clk 0:02:50]} 12. a5 {[%clk 0:02:49]}  b5 {[%clk 0:02:49]} 13. Nb3 {[%clk 0:02:48]}  Nc7 {[%clk 0:02:41]} 14. Be3 {[%clk 0:02:42]}  Ne6 {[%clk 0:02:34]} 15. Kc2 {[%clk 0:02:29]}  a6 {[%clk 0:02:33]} 16. f4 {[%clk 0:02:20]}  Nf6 {[%clk 0:02:28]} 17. e5 {[%clk 0:02:08]}  Nd5 {[%clk 0:02:28]} 18. Bd2 {[%clk 0:02:08]}  f6 {[%clk 0:02:18]} 19. Be2 {[%clk 0:02:03]}  fxe5 {[%clk 0:02:14]} 20. fxe5 {[%clk 0:02:04]}  Nef4 {[%clk 0:02:09]} 21. Rae1 {[%clk 0:01:40]}  Nxg2 {[%clk 0:02:03]} 22. Reg1 {[%clk 0:01:33]}  Ngf4 {[%clk 0:02:01]} 23. Nxf4 {[%clk 0:01:30]}  Nxf4 {[%clk 0:02:02]} 24. Bg4 {[%clk 0:01:30]}  Bxg4 {[%clk 0:01:46]} 25. Rxg4 {[%clk 0:01:29]}  Ne6 {[%clk 0:01:46]} 26. h4 {[%clk 0:01:25]}  Rf2 {[%clk 0:01:44]} 27. h5 {[%clk 0:01:25]}  g5 {[%clk 0:01:43]} 28. h6 {[%clk 0:01:21]}  Bh8 {[%clk 0:01:30]} 29. Nd4 {[%clk 0:01:02]}  Kf7 {[%clk 0:01:12]} 30. Nxc6 {[%clk 0:00:59]}  Rc8 {[%clk 0:01:07]} 31. Nb4 {[%clk 0:00:51]}  Rd8 {[%clk 0:00:58]} 32. Nd3 {[%clk 0:00:28]}  Rf3 {[%clk 0:00:41]} 33. Nb4 {[%clk 0:00:17]}  Bxe5 {[%clk 0:00:36]} 34. Bxg5 {[%clk 0:00:13]}  Rg8 {[%clk 0:00:27]} 35. Rhg1 {[%clk 0:00:09]}  Rf2+ {[%clk 0:00:27]} 36. Kb1 {[%clk 0:00:07]}  Bh2 {[%clk 0:00:27]} 37. R1g2 {[%clk 0:00:02]}  Rxg2 {[%clk 0:00:26]} 38. Rxg2 {[%clk 0:00:03]}  Bf4 {[%clk 0:00:24]} 39. Bxf4 {[%clk 0:00:01]}  Rxg2 {[%clk 0:00:23]} 40. Be5 {[%clk 0:00:01]}  Rg5 {[%clk 0:00:20]} 0-1


[Site "https://www.chess.com"]

[Event "Titled Tuesday Blitz October 26 2021"]
[White "Zierk, Steven"]
[Black "Gupta, Abhijeet"]
[WhiteFideId "2034255"]
[BlackFideId "5010608"]
[WhiteElo "2494"]
[BlackElo "2549"]
[Result "1-0"]
[Round "07"]
[TimeControl "180+1"]
[Date "2021.10.26"]
[WhiteClock "0:00:14"]
[BlackClock "0:00:09"]

1. e4 {[%clk 0:02:59]}  c5 {[%clk 0:03:00]} 2. Nf3 {[%clk 0:02:59]}  d6 {[%clk 0:03:00]} 3. d4 {[%clk 0:02:58]}  cxd4 {[%clk 0:03:01]} 4. Nxd4 {[%clk 0:02:59]}  Nf6 {[%clk 0:03:02]} 5. Nc3 {[%clk 0:03:00]}  Nc6 {[%clk 0:03:02]} 6. Bg5 {[%clk 0:02:59]}  e6 {[%clk 0:03:03]} 7. Qd2 {[%clk 0:02:59]}  a6 {[%clk 0:03:02]} 8. O-O-O {[%clk 0:02:57]}  Be7 {[%clk 0:03:01]} 9. f4 {[%clk 0:02:50]}  Bd7 {[%clk 0:03:02]} 10. Nf3 {[%clk 0:02:49]}  b5 {[%clk 0:03:02]} 11. e5 {[%clk 0:02:43]}  b4 {[%clk 0:03:00]} 12. exf6 {[%clk 0:02:43]}  bxc3 {[%clk 0:03:00]} 13. Qxc3 {[%clk 0:02:43]}  gxf6 {[%clk 0:03:01]} 14. Bh4 {[%clk 0:02:43]}  d5 {[%clk 0:02:58]} 15. f5 {[%clk 0:02:37]}  Rc8 {[%clk 0:02:48]} 16. fxe6 {[%clk 0:02:32]}  fxe6 {[%clk 0:02:47]} 17. Nd4 {[%clk 0:02:26]}  e5 {[%clk 0:02:09]} 18. Nxc6 {[%clk 0:02:19]}  Rxc6 {[%clk 0:02:10]} 19. Qf3 {[%clk 0:02:15]}  Qc7 {[%clk 0:01:53]} 20. Qxd5 {[%clk 0:01:54]}  Be6 {[%clk 0:01:45]} 21. Qd2 {[%clk 0:01:36]}  O-O {[%clk 0:01:42]} 22. Bd3 {[%clk 0:01:34]}  f5 {[%clk 0:01:24]} 23. Bxe7 {[%clk 0:01:11]}  Qxe7 {[%clk 0:01:25]} 24. Kb1 {[%clk 0:00:50]}  Rb8 {[%clk 0:01:22]} 25. h4 {[%clk 0:00:41]}  e4 {[%clk 0:00:55]} 26. Be2 {[%clk 0:00:38]}  e3 {[%clk 0:00:54]} 27. Qd4 {[%clk 0:00:28]}  Qf7 {[%clk 0:00:37]} 28. Qxe3 {[%clk 0:00:23]}  Bxa2+ {[%clk 0:00:36]} 29. Ka1 {[%clk 0:00:23]}  Rxc2 {[%clk 0:00:28]} 30. Qg3+ {[%clk 0:00:23]}  Qg6 {[%clk 0:00:18]} 31. Qxb8+ {[%clk 0:00:21]}  Kg7 {[%clk 0:00:19]} 32. Qe5+ {[%clk 0:00:18]}  Kh6 {[%clk 0:00:14]} 33. Rd6 {[%clk 0:00:15]}  Bf7 {[%clk 0:00:14]} 34. Rxg6+ {[%clk 0:00:15]}  Bxg6 {[%clk 0:00:15]} 35. g4 {[%clk 0:00:15]}  fxg4 {[%clk 0:00:13]} 36. h5 {[%clk 0:00:15]}  Bf7 {[%clk 0:00:09]} 37. Qf6+ {[%clk 0:00:14]} 1-0


[Site "https://www.chess.com"]

[Event "Titled Tuesday Blitz October 26 2021"]
[White "Abarca Gonzalez, Nicolas"]
[Black "Vlachos, Anatole"]
[WhiteFideId "3409422"]
[BlackFideId "26093189"]
[WhiteElo "2504"]
[BlackElo "2350"]
[Result "1-0"]
[Round "08"]
[TimeControl "180+1"]
[Date "2021.10.26"]
[WhiteClock "0:00:56"]
[BlackClock "0:00:15"]

1. e4 {[%clk 0:03:00]}  e5 {[%clk 0:02:59]} 2. Qh5 {[%clk 0:03:00]}  Nc6 {[%clk 0:02:54]} 3. Bc4 {[%clk 0:02:58]}  g6 {[%clk 0:02:53]} 4. Qf3 {[%clk 0:02:55]}  Nf6 {[%clk 0:02:53]} 5. Ne2 {[%clk 0:02:54]}  Bg7 {[%clk 0:02:51]} 6. Nbc3 {[%clk 0:02:52]}  d6 {[%clk 0:02:44]} 7. h3 {[%clk 0:02:51]}  Na5 {[%clk 0:02:38]} 8. d3 {[%clk 0:02:48]}  Nxc4 {[%clk 0:02:34]} 9. dxc4 {[%clk 0:02:49]}  h6 {[%clk 0:02:34]} 10. g4 {[%clk 0:02:49]}  Be6 {[%clk 0:02:28]} 11. b3 {[%clk 0:02:45]}  Nd7 {[%clk 0:02:24]} 12. Be3 {[%clk 0:02:41]}  a6 {[%clk 0:02:12]} 13. Ng3 {[%clk 0:02:36]}  Qh4 {[%clk 0:02:01]} 14. Nf5 {[%clk 0:02:32]}  gxf5 {[%clk 0:01:56]} 15. gxf5 {[%clk 0:02:33]}  O-O-O {[%clk 0:01:53]} 16. fxe6 {[%clk 0:02:26]}  fxe6 {[%clk 0:01:54]} 17. O-O-O {[%clk 0:02:26]}  Rdf8 {[%clk 0:01:49]} 18. Qg4 {[%clk 0:02:25]}  Qxg4 {[%clk 0:01:37]} 19. hxg4 {[%clk 0:02:26]}  Nf6 {[%clk 0:01:31]} 20. Rh4 {[%clk 0:02:24]}  Nh7 {[%clk 0:01:26]} 21. Rdh1 {[%clk 0:02:15]}  Ng5 {[%clk 0:01:21]} 22. Bxg5 {[%clk 0:02:12]}  hxg5 {[%clk 0:01:22]} 23. Rxh8 {[%clk 0:02:12]}  Rxh8 {[%clk 0:01:23]} 24. Rxh8+ {[%clk 0:02:11]}  Bxh8 {[%clk 0:01:24]} 25. Kd2 {[%clk 0:02:12]}  Kd7 {[%clk 0:01:22]} 26. Kd3 {[%clk 0:01:58]}  Bf6 {[%clk 0:01:22]} 27. b4 {[%clk 0:01:52]}  c6 {[%clk 0:01:17]} 28. c5 {[%clk 0:01:48]}  d5 {[%clk 0:01:13]} 29. f3 {[%clk 0:01:47]}  Bd8 {[%clk 0:01:10]} 30. Na4 {[%clk 0:01:42]}  Bc7 {[%clk 0:01:02]} 31. c3 {[%clk 0:01:42]}  Ke7 {[%clk 0:01:00]} 32. Nb2 {[%clk 0:01:42]}  Kd7 {[%clk 0:01:00]} 33. a4 {[%clk 0:01:43]}  Ke7 {[%clk 0:00:57]} 34. a5 {[%clk 0:01:37]}  Kd7 {[%clk 0:00:55]} 35. Na4 {[%clk 0:01:35]}  Ke7 {[%clk 0:00:55]} 36. Nb2 {[%clk 0:01:33]}  Kd7 {[%clk 0:00:54]} 37. Nd1 {[%clk 0:01:33]}  Ke7 {[%clk 0:00:53]} 38. Ke3 {[%clk 0:01:29]}  Kd7 {[%clk 0:00:48]} 39. Nf2 {[%clk 0:01:30]}  Bd8 {[%clk 0:00:46]} 40. Kd3 {[%clk 0:01:28]}  Ke7 {[%clk 0:00:43]} 41. Nh3 {[%clk 0:01:26]}  Kd7 {[%clk 0:00:42]} 42. Kd2 {[%clk 0:01:24]}  Bf6 {[%clk 0:00:42]} 43. Kc2 {[%clk 0:01:24]}  Kc7 {[%clk 0:00:40]} 44. Ng1 {[%clk 0:01:19]}  Kd7 {[%clk 0:00:40]} 45. Ne2 {[%clk 0:01:19]}  Kc7 {[%clk 0:00:40]} 46. Ng3 {[%clk 0:01:19]}  Kd7 {[%clk 0:00:39]} 47. Nh5 {[%clk 0:01:20]}  Bh8 {[%clk 0:00:37]} 48. Kd3 {[%clk 0:01:16]}  Kc7 {[%clk 0:00:37]} 49. Ke2 {[%clk 0:01:13]}  Kd7 {[%clk 0:00:37]} 50. Ng3 {[%clk 0:01:05]}  Bf6 {[%clk 0:00:37]} 51. Kd3 {[%clk 0:01:05]}  Kc7 {[%clk 0:00:37]} 52. exd5 {[%clk 0:01:04]}  exd5 {[%clk 0:00:33]} 53. c4 {[%clk 0:01:04]}  Kd7 {[%clk 0:00:30]} 54. Nf5 {[%clk 0:01:05]}  Bd8 {[%clk 0:00:25]} 55. Nd6 {[%clk 0:01:01]}  Kc7 {[%clk 0:00:18]} 56. Nf7 {[%clk 0:00:59]}  Bf6 {[%clk 0:00:18]} 57. Ke3 {[%clk 0:00:59]}  dxc4 {[%clk 0:00:16]} 58. Nd6 {[%clk 0:00:57]}  c3 {[%clk 0:00:13]} 59. Ne8+ {[%clk 0:00:54]}  Kd7 {[%clk 0:00:12]} 60. Nxf6+ {[%clk 0:00:55]}  Ke6 {[%clk 0:00:13]} 61. Ne4 {[%clk 0:00:54]}  Kd5 {[%clk 0:00:12]} 62. Kd3 {[%clk 0:00:55]}  c2 {[%clk 0:00:12]} 63. Kxc2 {[%clk 0:00:55]}  Kc4 {[%clk 0:00:13]} 64. Nxg5 {[%clk 0:00:54]}  Kxb4 {[%clk 0:00:14]} 65. Ne4 {[%clk 0:00:55]}  Kc4 {[%clk 0:00:13]} 66. g5 {[%clk 0:00:56]}  Kd5 {[%clk 0:00:14]} 67. g6 {[%clk 0:00:56]}  Ke6 {[%clk 0:00:15]} 68. Kd3 {[%clk 0:00:56]} 1-0


[Site "https://www.chess.com"]